bitfinex/quotes_BTCUSD_20250204
["timestamp","ask_amount","ask_price","bid_price","bid_amount"]
[1738649186658,0.00685964,99307.0,99293.0,0.10238506]
[1738649186970,0.01329651,99308.0,99294.0,0.03123044]
[1738649187127,0.01329651,99308.0,99305.0,0.151049]
[1738649187334,0.00685965,99307.0,99305.0,0.151049]
[1738649188692,0.00685965,99307.0,99304.0,0.15105]
[1738649188899,0.00685965,99307.0,99305.0,0.151049]
[1738649189810,0.00685965,99307.0,99304.0,0.15105]
[1738649190868,0.00685965,99307.0,99296.0,0.201417]
[1738649191084,0.00685965,99307.0,99286.0,0.00022407]
[1738649191085,0.00134514,99306.0,99286.0,0.00022407]
[1738649191296,0.151047,99307.0,99298.0,0.151059]
[1738649191512,0.00755336,99305.0,99294.0,0.201421]
[1738649191717,0.01329651,99308.0,99293.0,0.201422]
[1738649191917,0.151051,99304.0,99294.0,0.151066]
[1738649192377,0.00754908,99303.0,99288.0,0.15]
[1738649192564,0.00754908,99303.0,99290.0,0.20143]
[1738649192752,0.21469151,99308.0,99291.0,0.10238506]
[1738649193017,0.00754695,99302.0,99295.0,0.151063]
[1738649193225,0.00134514,99301.0,99286.0,0.00022407]
[1738649193334,0.00754481,99301.0,99286.0,0.00022407]
[1738649193535,0.01329651,99308.0,99287.0,0.151076]
[1738649193536,0.151062,99297.0,99287.0,0.151076]
[1738649193735,0.20895367,99300.0,99287.0,0.15018532]
[1738649193940,0.00753413,99296.0,99288.0,0.151074]
[1738649194146,0.2014,99305.0,99287.0,0.00022407]
[1738649194342,0.00753199,99295.0,99288.0,0.151074]
[1738649194596,0.201405,99302.0,99290.0,0.151072]
[1738649194840,0.00752985,99294.0,99290.0,0.151072]
[1738649194964,0.2014,99305.0,99290.0,0.151072]
[1738649195179,0.16988843,99301.0,99290.0,0.151072]
[1738649195662,0.16988843,99301.0,99271.0,0.00022407]
[1738649195663,0.0483,99299.0,99271.0,0.00022407]
[1738649195883,0.230199,99273.0,99271.0,0.00022407]
[1738649196087,0.00134514,99272.0,99271.0,0.0003655]
[1738649196288,0.230199,99273.0,99271.0,0.0003655]
[1738649196469,0.00747919,99272.0,99271.0,0.0003655]
[1738649196697,0.07153921,99272.0,99271.0,0.0003655]
[1738649196902,0.39776941,99272.0,99271.0,0.0003655]
[1738649197101,0.39642427,99272.0,99271.0,0.0003655]
[1738649197510,0.4252567,99272.0,99271.0,0.0003655]
[1738649197724,0.5023567,99272.0,99271.0,0.0003655]
[1738649197925,0.5023567,99272.0,99222.0,0.151175]
[1738649197926,0.228725,99255.0,99222.0,0.151175]
[1738649198128,0.228725,99255.0,99219.0,0.00022428]
[1738649198129,0.151156,99235.0,99219.0,0.00022428]
[1738649198341,0.16330714,99250.0,99227.0,0.151167]
[1738649198546,0.00738936,99234.0,99228.0,0.1037253]
[1738649198780,0.0776,99255.0,99228.0,0.1037253]
[1738649199187,0.151139,99247.0,99229.0,0.201553]
[1738649199319,0.00743214,99254.0,99229.0,0.10238506]
[1738649199526,0.151139,99246.0,99229.0,0.10238506]
[1738649199736,0.151141,99245.0,99233.0,0.151158]
[1738649199932,0.00134514,99244.0,99212.0,0.201587]
[1738649200134,0.151157,99235.0,99223.0,0.00014146]
[1738649200355,0.151157,99234.0,99223.0,0.00014146]
[1738649200555,0.00737812,99234.0,99223.0,0.00014146]
[1738649200767,0.0459,99245.0,99223.0,0.00014146]
[1738649200768,0.201553,99230.0,99223.0,0.00014146]
[1738649200996,0.151173,99224.0,99223.0,0.00014146]
[1738649201200,0.15251814,99224.0,99223.0,0.00014146]
[1738649201388,0.15852973,99224.0,99223.0,0.00014146]
[1738649201784,0.15987487,99224.0,99223.0,0.00014146]
[1738649201981,0.26225993,99224.0,99223.0,0.00014146]
[1738649202182,0.33674425,99224.0,99223.0,0.00014146]
[1738649202700,0.26091479,99224.0,99223.0,0.00014146]
[1738649203107,0.00735673,99224.0,99223.0,0.00014146]
[1738649203480,0.00870187,99224.0,99223.0,0.00014146]
[1738649203668,0.00735673,99224.0,99223.0,0.00014146]
[1738649203794,0.00870187,99224.0,99223.0,0.00014146]
[1738649203996,0.11108693,99224.0,99223.0,0.00014146]
[1738649204845,0.23688693,99224.0,99223.0,0.00014146]
[1738649205043,0.23554179,99224.0,99223.0,0.00014146]
[1738649205515,0.25854179,99224.0,99223.0,0.00014146]
[1738649206040,0.27719354,99224.0,99223.0,0.00036553]
[1738649206244,1.86034149,99224.0,99223.0,0.00036553]
[1738649207513,1.7758877,99224.0,99223.0,0.00036553]
[1738649207713,0.2758877,99224.0,99223.0,0.00036553]
[1738649207931,0.2528877,99224.0,99223.0,0.00036553]
[1738649208770,0.23423595,99224.0,99223.0,0.00036553]
[1738649209291,0.151192,99212.0,99204.0,0.00015021]
[1738649209649,0.151195,99210.0,99204.0,0.00015021]
[1738649209790,0.00716812,99211.0,99204.0,0.00015021]
[1738649209995,0.00716384,99209.0,99204.0,0.00015021]
[1738649210193,0.00716598,99210.0,99205.0,0.1512]
[1738649210391,0.0071617,99208.0,99206.0,0.151199]
[1738649210612,0.201568,99222.0,99208.0,0.151197]
[1738649210613,0.00716384,99209.0,99208.0,0.151197]
[1738649210818,0.201574,99220.0,99204.0,0.00015021]
[1738649211043,0.151183,99218.0,99209.0,0.151195]
[1738649211226,0.00718524,99219.0,99216.0,0.151184]
[1738649211425,0.00718096,99217.0,99216.0,0.151185]
[1738649211624,0.0001412,99224.0,99210.0,0.16330714]
[1738649211835,0.151178,99221.0,99212.0,0.15119]
[1738649212266,0.15836738,99220.0,99212.0,0.15119]
[1738649212563,0.00718738,99220.0,99210.0,0.16330714]
[1738649212851,0.151183,99218.0,99209.0,0.151195]
[1738649213059,0.201571,99221.0,99204.0,0.00015021]
[1738649213196,0.00718096,99217.0,99204.0,0.00015021]
[1738649213400,0.151202,99205.0,99204.0,0.00015021]
[1738649213648,0.33528706,99205.0,99204.0,0.00015021]
[1738649213799,0.34244234,99205.0,99204.0,0.00015021]
[1738649213999,1.84244234,99205.0,99204.0,0.00015021]
[1738649214199,0.34244234,99205.0,99204.0,0.00015021]
[1738649215084,0.42183567,99205.0,99204.0,0.00015021]
[1738649215526,0.45495444,99205.0,99204.0,0.00015021]
[1738649215661,0.45495444,99205.0,99199.0,0.00022386]
[1738649215662,0.151209,99200.0,99199.0,0.00022386]
[1738649215865,0.26206317,99200.0,99199.0,0.00022386]
[1738649216078,0.26071803,99200.0,99199.0,0.00022386]
[1738649216274,0.27839871,99200.0,99199.0,0.00022386]
[1738649218082,0.30139871,99200.0,99199.0,0.00022386]
[1738649218298,0.28371803,99200.0,99199.0,0.00022386]
[1738649218525,0.43371803,99200.0,99199.0,0.00022386]
[1738649218726,1.93371803,99200.0,99199.0,0.00022386]
[1738649219167,1.94371803,99200.0,99199.0,0.00022386]
[1738649219920,1.94371803,99200.0,99190.0,0.00022407]
[1738649219921,0.425123,99191.0,99190.0,0.00022407]
[1738649220123,0.334227,99188.0,99187.0,0.00022407]
[1738649220345,0.45384925,99188.0,99187.0,0.00022407]
[1738649220547,1.96107396,99188.0,99187.0,0.00022407]
[1738649220752,0.193,99187.0,99171.0,0.00022386]
[1738649220958,0.399652,99172.0,99171.0,0.00022386]
[1738649221196,0.5192275,99172.0,99171.0,0.00022386]
[1738649221397,0.5672275,99172.0,99171.0,0.0006955]
[1738649221533,2.18241738,99172.0,99171.0,0.0006955]
[1738649221728,0.311259,99167.0,99166.0,0.00022386]
[1738649221929,0.50963203,99167.0,99166.0,0.00036543]
[1738649222362,0.51963203,99167.0,99166.0,0.00036543]
[1738649223176,0.52708835,99167.0,99166.0,0.00036543]
[1738649223536,0.151311,99133.0,99124.0,0.151324]
[1738649223745,0.15771589,99133.0,99123.0,0.00022407]
[1738649224129,0.15906103,99133.0,99123.0,0.00022407]
[1738649224335,0.29739218,99133.0,99123.0,0.00022407]
[1738649224475,0.29604704,99133.0,99123.0,0.00022407]
[1738649224836,0.31904704,99133.0,99123.0,0.00022407]
[1738649225065,0.33768622,99133.0,99123.0,0.00022407]
[1738649225816,0.34789646,99133.0,99123.0,0.00022407]
[1738649226255,0.53778418,99133.0,99123.0,0.00022407]
[1738649226468,0.54503304,99133.0,99123.0,0.00022407]
[1738649226889,0.53503304,99133.0,99123.0,0.00022407]
[1738649227046,0.54029236,99133.0,99123.0,0.00022407]
[1738649227251,0.54229236,99133.0,99123.0,0.00022407]
[1738649227455,0.54029236,99133.0,99123.0,0.00022407]
[1738649227669,0.50434627,99133.0,99123.0,0.00022407]
[1738649228084,0.50934627,99133.0,99123.0,0.00022407]
[1738649228877,0.50434627,99133.0,99123.0,0.00022407]
[1738649230408,0.49930947,99133.0,99123.0,0.00022407]
[1738649230714,0.50130947,99133.0,99123.0,0.00022407]
[1738649231308,0.32830947,99133.0,99123.0,0.00022407]
[1738649231530,0.32630947,99133.0,99123.0,0.00022407]
[1738649231694,0.01292244,99132.0,99123.0,0.00022407]
[1738649232054,0.0065179,99131.0,99123.0,0.00022407]
[1738649232417,0.0065179,99131.0,99129.0,0.15154107]
[1738649232633,0.10238506,99130.0,99129.0,0.00022407]
[1738649232796,0.12236938,99130.0,99129.0,0.00022407]
[1738649233000,0.12888514,99130.0,99129.0,0.00022407]
[1738649233616,0.13635652,99130.0,99129.0,0.00022407]
[1738649234862,0.16620477,99130.0,99129.0,0.00022407]
[1738649235062,0.22995813,99130.0,99129.0,0.00022407]
[1738649235260,0.22861299,99130.0,99129.0,0.00022407]
[1738649235822,0.26165455,99130.0,99129.0,0.00022407]
[1738649236130,1.76165455,99130.0,99129.0,0.00022407]
[1738649236568,1.84405455,99130.0,99129.0,0.00022407]
[1738649236777,1.84909415,99130.0,99129.0,0.00022407]
[1738649237887,2.00927867,99130.0,99129.0,0.00022407]
[1738649238793,0.50927867,99130.0,99129.0,0.00022407]
[1738649238980,0.71927867,99130.0,99129.0,0.00022407]
[1738649239220,2.21927867,99130.0,99129.0,0.00022407]
[1738649240255,2.14552531,99130.0,99129.0,0.00022407]
[1738649240661,0.151325,99124.0,99123.0,0.00022407]
[1738649240780,0.42671006,99124.0,99123.0,0.00022407]
[1738649240995,0.26047131,99124.0,99123.0,0.00022407]
[1738649241423,0.01019542,99124.0,99123.0,0.00022407]
[1738649241839,0.151325,99125.0,99123.0,0.00022407]
[1738649242041,0.02370641,99124.0,99123.0,0.00022407]
[1738649242349,0.13589372,99124.0,99123.0,0.00022407]
[1738649242565,0.07219384,99124.0,99123.0,0.00022407]
[1738649243185,0.02270641,99124.0,99123.0,0.00022407]
[1738649243358,0.02270641,99124.0,99123.0,0.05002407]
[1738649243567,0.01251098,99124.0,99123.0,0.05002407]
[1738649243993,0.00747138,99124.0,99123.0,0.05002407]
[1738649244630,0.00747138,99124.0,99123.0,0.00022407]
[1738649244834,0.01761517,99124.0,99123.0,0.00022407]
[1738649247088,0.00747138,99124.0,99123.0,0.00022407]
[1738649247297,0.01269837,99123.0,99122.0,0.151327]
[1738649248652,0.02016975,99123.0,99122.0,0.151327]
[1738649250400,0.02016975,99123.0,99122.0,0.38135377]
[1738649250594,0.02016975,99123.0,99122.0,0.53001206]
[1738649251742,0.01269837,99123.0,99122.0,0.53001206]
[1738649253378,0.0002245,99132.0,99131.0,0.301314]
[1738649253603,0.00995795,99157.0,99156.0,0.279876]
[1738649253804,0.08926768,99161.0,99160.0,0.15127]
[1738649254367,0.08940883,99161.0,99160.0,0.15127]
[1738649256180,0.00014115,99161.0,99160.0,0.25365506]
[1738649256599,0.00014115,99161.0,99160.0,0.48335506]
[1738649256976,0.00014115,99161.0,99160.0,0.53285506]
[1738649263882,0.00014115,99161.0,99160.0,0.55585506]
[1738649266323,0.00036543,99161.0,99160.0,0.55585506]
[1738649267993,4.3e-07,99161.0,99160.0,0.56585506]
[1738649268132,0.226266,99229.0,99218.0,0.151182]
[1738649268361,0.00047193,99221.0,99215.0,0.151186]
[1738649268602,0.00047193,99221.0,99213.0,0.16330714]
[1738649268603,0.00047193,99221.0,99216.0,0.151184]
[1738649268807,0.00047193,99221.0,99213.0,0.16330714]
[1738649268976,0.00047193,99221.0,99213.0,0.31449614]
[1738649269327,0.00047193,99221.0,99214.0,0.151186]
[1738649269458,0.00047193,99221.0,99213.0,0.16330714]
[1738649269658,0.20204193,99221.0,99213.0,0.16330714]
[1738649269852,0.078,99218.0,99184.0,0.0496]
[1738649270056,0.10238506,99217.0,99185.0,0.10238506]
[1738649270326,0.151186,99215.0,99191.0,0.151222]
[1738649270512,0.151205,99203.0,99181.0,0.03]
[1738649270711,0.151205,99203.0,99193.0,0.151218]
[1738649270927,0.2016708,99224.0,99199.0,0.15121]
[1738649271124,0.151193,99211.0,99200.0,0.31451614]
[1738649271268,0.20158,99216.0,99200.0,0.16330714]
[1738649271474,0.151201,99206.0,99190.0,0.16330714]
[1738649271886,0.00975487,99205.0,99194.0,0.151217]
[1738649272102,0.00975487,99205.0,99195.0,0.151216]
[1738649272319,0.0001068,99224.0,99220.0,0.151179]
[1738649272517,0.0001068,99224.0,99220.0,0.40356406]
[1738649273185,0.0001068,99224.0,99220.0,0.42656406]
[1738649273383,0.0001068,99224.0,99220.0,0.45036406]
[1738649275641,0.0001068,99224.0,99220.0,0.46025458]
[1738649278006,0.00069621,99221.0,99220.0,0.46025458]
[1738649278205,0.00069621,99221.0,99211.0,0.16330714]
[1738649278206,0.00069621,99221.0,99209.0,0.201593]
[1738649278411,0.00069621,99221.0,99205.0,0.12993]
[1738649278412,0.00069621,99221.0,99205.0,0.00403]
[1738649278835,0.201572,99220.0,99210.0,0.0001]
[1738649279026,0.151191,99213.0,99210.0,0.16340714]
[1738649279251,0.00666652,99219.0,99210.0,0.0001]
[1738649279406,0.00664155,99212.0,99210.0,0.0001]
[1738649279568,0.151184,99217.0,99206.0,0.14818552]
[1738649279768,0.00663798,99211.0,99206.0,0.14818552]
[1738649279971,0.00069621,99221.0,99203.0,0.16330714]
[1738649280175,0.201574,99219.0,99203.0,0.16330714]
[1738649280540,0.151193,99211.0,99203.0,0.16330714]
[1738649280675,0.201588,99213.0,99198.0,0.15681263]
[1738649280876,0.00666295,99218.0,99198.0,0.15681263]
[1738649281077,0.15783255,99212.0,99201.0,0.151207]
[1738649281283,0.151191,99212.0,99202.0,0.151205]
[1738649281480,0.151191,99212.0,99200.0,0.16330714]
[1738649281481,0.00661667,99211.0,99209.0,0.151194]
[1738649281741,0.01871744,99217.0,99216.0,0.151185]
[1738649282788,0.01871744,99217.0,99208.0,0.00134046]
[1738649282789,0.00069621,99221.0,99208.0,0.15]
[1738649283004,0.00069621,99221.0,99218.0,0.151182]
[1738649283242,0.00069621,99221.0,99210.0,0.201592]
[1738649283450,0.00069621,99221.0,99198.0,0.20842863]
[1738649283451,0.00069621,99221.0,99203.0,0.201606]
[1738649283651,0.00069621,99221.0,99198.0,0.20842863]
[1738649283652,0.151201,99206.0,99198.0,0.00681263]
[1738649283859,0.00134514,99220.0,99190.0,0.16330714]
[1738649283860,0.201574,99219.0,99191.0,0.15]
[1738649284073,0.00659888,99205.0,99199.0,0.15]
[1738649284304,0.00069621,99221.0,99199.0,0.15]
[1738649284305,0.151207,99202.0,99199.0,0.15]
[1738649284507,0.15779931,99204.0,99199.0,0.15]
[1738649284837,0.201593,99210.0,99194.0,0.151217]
[1738649284975,0.00658624,99203.0,99190.0,0.24551737]
[1738649285182,0.151201,99206.0,99196.0,0.151215]
[1738649285376,0.00659326,99205.0,99197.0,0.151213]
[1738649286105,0.00659326,99205.0,99193.0,0.201627]
[1738649286428,0.151202,99205.0,99193.0,0.15122]
[1738649286633,0.00658969,99204.0,99191.0,0.201631]
[1738649286970,0.201597,99208.0,99191.0,0.201631]
[1738649287182,0.00658612,99203.0,99191.0,0.201631]
[1738649287381,0.151201,99206.0,99194.0,0.151218]
[1738649287603,0.00658255,99202.0,99194.0,0.151218]
[1738649287803,0.151201,99206.0,99194.0,0.151218]
[1738649288016,0.00657899,99201.0,99194.0,0.151218]
[1738649288294,0.00657229,99200.0,99194.0,0.151218]
[1738649288554,0.151201,99206.0,99194.0,0.151218]
[1738649288699,0.151202,99205.0,99194.0,0.151218]
[1738649288902,0.00547586,99199.0,99194.0,0.151218]
[1738649289189,0.01877315,99204.0,99194.0,0.151218]
[1738649289374,0.00547229,99198.0,99197.0,0.0001067]
[1738649289602,0.01877315,99204.0,99197.0,0.0001067]
[1738649289802,0.0054723,99198.0,99197.0,0.0001067]
[1738649290009,0.01877315,99204.0,99197.0,0.0001067]
[1738649290215,0.0054723,99198.0,99197.0,0.0001067]
[1738649290419,0.151197,99209.0,99197.0,0.0001067]
[1738649290624,0.00550798,99208.0,99197.0,0.0001067]
[1738649290817,0.2016,99206.0,99197.0,0.0001067]
[1738649291059,0.00550379,99207.0,99197.0,0.0001067]
[1738649291347,0.20705866,99205.0,99197.0,0.0001067]
[1738649291562,0.201602,99205.0,99197.0,0.0001067]
[1738649291875,0.00545309,99204.0,99197.0,0.0001067]
[1738649292254,0.00545309,99204.0,99201.0,0.151207]
[1738649292492,0.151195,99210.0,99201.0,0.151207]
[1738649292685,0.201588,99212.0,99197.0,0.2017237]
[1738649292828,0.201596,99208.0,99197.0,0.0001067]
[1738649293033,0.201596,99208.0,99198.0,0.151211]
[1738649293226,0.201596,99208.0,99200.0,0.151209]
[1738649293429,0.151195,99210.0,99201.0,0.151207]
[1738649293651,0.00547051,99209.0,99203.0,0.151204]
[1738649293951,0.151188,99214.0,99205.0,0.151201]
[1738649294134,0.15667578,99213.0,99204.0,0.151202]
[1738649294345,0.15667578,99213.0,99205.0,0.151201]
[1738649294743,0.00548478,99213.0,99199.0,0.403228]
[1738649294945,0.08926768,99214.0,99200.0,0.10238506]
[1738649295175,0.08926768,99214.0,99213.0,0.151189]
[1738649296029,0.08926768,99220.0,99208.0,0.201594]
[1738649296236,0.00550618,99219.0,99216.0,0.151185]
[1738649296884,0.00550618,99219.0,99201.0,0.0826]
[1738649297081,0.00550618,99219.0,99202.0,0.30399306]
[1738649297286,0.08926768,99220.0,99215.0,0.151186]
[1738649297459,0.08926768,99220.0,99202.0,0.30399306]
[1738649297663,0.00550618,99219.0,99203.0,0.201606]
[1738649297981,0.08926768,99220.0,99217.0,0.151183]
[1738649298159,0.00550261,99218.0,99217.0,0.151183]
[1738649298395,0.0001068,99224.0,99217.0,0.151183]
[1738649298592,0.00550261,99218.0,99217.0,0.151183]
[1738649298798,0.0001068,99224.0,99217.0,0.151183]
[1738649299008,0.0001068,99224.0,99219.0,0.15118]
[1738649299164,0.0001068,99224.0,99220.0,0.00134029]
[1738649299360,0.0001068,99224.0,99219.0,0.25356506]
[1738649301612,0.0001068,99224.0,99215.0,0.151186]
[1738649301862,0.0001068,99224.0,99205.0,0.0484]
[1738649302032,0.0001068,99224.0,99220.0,0.151179]
[1738649302602,0.0001068,99224.0,99220.0,0.40356406]
[1738649303511,0.0001068,99224.0,99220.0,0.48076406]
[1738649304085,0.0001068,99224.0,99220.0,0.51397289]
[1738649305595,0.0001068,99224.0,99220.0,0.49097289]
[1738649305771,0.0001068,99224.0,99220.0,0.41377289]
[1738649317444,0.0001068,99224.0,99220.0,0.43677289]
[1738649319016,0.0001068,99224.0,99220.0,0.70377289]
[1738649319781,0.0001068,99224.0,99220.0,0.41377289]
[1738649321054,0.0001068,99224.0,99191.0,0.0771]
[1738649321246,0.0001068,99224.0,99211.0,0.151192]
[1738649321422,0.2016708,99224.0,99206.0,0.1512]
[1738649321819,0.2016708,99224.0,99203.0,0.151203]
[1738649321820,0.151188,99214.0,99203.0,0.151203]
[1738649322021,0.151191,99213.0,99199.0,0.39238506]
[1738649322222,0.00724404,99212.0,99208.0,0.151197]
[1738649322421,0.00069621,99221.0,99204.0,0.201602]
[1738649322616,0.201578,99218.0,99204.0,0.201602]
[1738649322824,0.151189,99214.0,99204.0,0.201602]
[1738649323030,0.00724635,99213.0,99207.0,0.151197]
[1738649323230,0.20226721,99221.0,99201.0,0.15]
[1738649323444,0.151184,99217.0,99208.0,0.151197]
[1738649323701,0.00726036,99216.0,99208.0,0.151197]
[1738649324045,0.00726036,99216.0,99205.0,0.201601]
[1738649324246,0.00726036,99216.0,99209.0,0.151195]
[1738649324445,0.15844536,99216.0,99207.0,0.151197]
[1738649324681,0.15844536,99216.0,99206.0,0.2016]
[1738649324891,0.00726036,99216.0,99208.0,0.151196]
[1738649325244,0.201576,99218.0,99209.0,0.151195]
[1738649325445,0.20226721,99221.0,99198.0,0.0001067]
[1738649325446,0.10238506,99216.0,99198.0,0.0001067]
[1738649325644,0.15121,99200.0,99198.0,0.0001067]
[1738649325845,0.00512621,99199.0,99198.0,0.0001067]
[1738649328128,0.08507135,99199.0,99198.0,0.0001067]
[1738649328396,0.25239801,99199.0,99198.0,0.0001067]
[1738649328664,0.29675287,99199.0,99198.0,0.0001067]
[1738649329083,0.44675287,99199.0,99198.0,0.0001067]
[1738649329287,0.48727628,99199.0,99198.0,0.0001067]
[1738649329499,0.48727628,99199.0,99160.0,0.0001068]
[1738649329500,0.411712,99198.0,99160.0,0.0001068]
[1738649329691,0.66209178,99198.0,99160.0,0.0001068]
[1738649329830,0.66752809,99198.0,99160.0,0.0001068]
[1738649330261,2.03203337,99198.0,99160.0,0.16368801]
[1738649330732,2.03955678,99198.0,99163.0,0.151265]
[1738649331113,2.03955678,99198.0,99165.0,0.151261]
[1738649331322,2.03955678,99198.0,99163.0,0.151266]
[1738649331706,2.03955678,99198.0,99161.0,0.151267]
[1738649332219,0.54855678,99198.0,99197.0,0.0011067]
[1738649332645,2.04855678,99198.0,99197.0,0.0011067]
[1738649333069,0.58155678,99198.0,99197.0,0.0011067]
[1738649333273,0.69104245,99198.0,99197.0,0.0011067]
[1738649333473,2.19104245,99198.0,99197.0,0.0011067]
[1738649333694,2.20104245,99198.0,99197.0,0.0011067]
[1738649333900,2.21976675,99198.0,99197.0,0.0011067]
[1738649334095,2.41976675,99198.0,99197.0,0.0011067]
[1738649334331,0.151269,99161.0,99160.0,0.0001068]
[1738649334951,0.00530151,99161.0,99160.0,0.0001068]
[1738649335359,0.0774,99182.0,99161.0,0.201692]
[1738649335605,0.151248,99175.0,99165.0,0.151262]
[1738649335974,0.201637,99188.0,99163.0,0.151265]
[1738649335975,0.00534572,99174.0,99163.0,0.151265]
[1738649336195,0.151259,99168.0,99160.0,0.0001068]
[1738649336397,0.00532073,99167.0,99162.0,0.151267]
[1738649336896,0.0102231,99182.0,99160.0,0.0001068]
[1738649337139,0.151251,99173.0,99163.0,0.151264]
[1738649337340,0.151256,99170.0,99161.0,0.151268]
[1738649337550,0.15659158,99172.0,99163.0,0.151265]
[1738649337752,0.00532787,99169.0,99163.0,0.151265]
[1738649337955,0.151253,99172.0,99163.0,0.151265]
[1738649338190,0.0053243,99168.0,99164.0,0.151263]
[1738649338361,0.151253,99172.0,99164.0,0.151263]
[1738649338703,0.00532139,99171.0,99164.0,0.151263]
[1738649339469,0.00532139,99171.0,99161.0,0.201691]
[1738649339645,0.00532139,99171.0,99160.0,0.0001068]
[1738649339646,0.00532139,99171.0,99163.0,0.151265]
[1738649339880,0.151252,99172.0,99163.0,0.151265]
[1738649340017,0.00531782,99170.0,99163.0,0.151265]
[1738649340221,0.00531425,99169.0,99163.0,0.151265]
[1738649340416,0.15657125,99169.0,99161.0,0.151268]
[1738649340769,0.00531068,99168.0,99160.0,0.0001068]
[1738649341123,0.201657,99178.0,99160.0,0.0001068]
[1738649341360,0.201657,99178.0,99160.0,0.2017988]
[1738649341539,0.201642,99186.0,99176.0,0.151246]
[1738649341540,0.00534281,99177.0,99176.0,0.151246]
[1738649341915,0.151232,99185.0,99175.0,0.151247]
[1738649342115,0.151229,99187.0,99179.0,0.151241]
[1738649342333,0.00536779,99184.0,99170.0,0.201673]
[1738649342535,0.151233,99185.0,99175.0,0.151247]
[1738649342738,0.151233,99185.0,99176.0,0.151245]
[1738649342739,0.00536422,99183.0,99176.0,0.151245]
[1738649343054,0.151233,99185.0,99176.0,0.151245]
[1738649343261,0.01017327,99192.0,99173.0,0.201666]
[1738649343406,0.151228,99188.0,99179.0,0.151241]
[1738649343607,0.15323,99187.0,99179.0,0.151241]
[1738649343823,0.1586085,99187.0,99179.0,0.151241]
[1738649344112,0.0073785,99187.0,99185.0,0.151231]
[1738649344319,0.0073785,99187.0,99186.0,0.10238506]
[1738649344519,0.002,99187.0,99186.0,0.10372575]
[1738649345006,0.002,99187.0,99186.0,0.25372575]
[1738649345175,0.002,99187.0,99186.0,0.25238506]
[1738649345535,0.00014149,99198.0,99186.0,0.25238506]
[1738649345536,0.00014149,99198.0,99197.0,0.151214]
[1738649346811,0.00014149,99198.0,99190.0,0.201631]
[1738649347021,0.00014149,99198.0,99190.0,0.10238506]
[1738649347227,0.00014149,99198.0,99184.0,0.0487]
[1738649347433,0.151223,99191.0,99182.0,0.151235]
[1738649347645,0.00148663,99198.0,99172.0,0.201669]
[1738649347847,0.00541486,99190.0,99179.0,0.201655]
[1738649348173,0.00014149,99198.0,99173.0,0.10238506]
[1738649348174,0.00541129,99189.0,99174.0,0.15]
[1738649348349,0.00541129,99189.0,99176.0,0.151246]
[1738649348576,0.201619,99197.0,99173.0,0.10238506]
[1738649348734,0.00540772,99188.0,99173.0,0.10238506]
[1738649348981,0.201619,99197.0,99177.0,0.151244]
[1738649349115,0.00014149,99198.0,99170.0,0.1737538]
[1738649349116,0.13277976,99196.0,99170.0,0.151254]
[1738649349317,0.151239,99181.0,99166.0,0.01022103]
[1738649349685,1.5,99195.0,99168.0,0.201677]
[1738649349849,0.00537917,99180.0,99172.0,0.151251]
[1738649350184,0.0053756,99179.0,99172.0,0.151251]
[1738649350317,0.0053756,99179.0,99160.0,0.17362849]
[1738649350532,0.0300091,99195.0,99182.0,0.151236]
[1738649350849,0.0300091,99195.0,99161.0,0.10238506]
[1738649350850,0.151219,99194.0,99186.0,0.15123]
[1738649351249,0.151219,99194.0,99183.0,0.151234]
[1738649351431,0.01876877,99193.0,99176.0,0.20166]
[1738649351638,0.151221,99192.0,99182.0,0.151235]
[1738649351836,0.151226,99190.0,99180.0,0.151239]
[1738649352084,0.151226,99190.0,99170.0,0.16358121]
[1738649352085,0.151223,99191.0,99181.0,0.151237]
[1738649352296,0.151223,99191.0,99182.0,0.151236]
[1738649352456,0.01876877,99190.0,99180.0,0.16358121]
[1738649352658,0.151228,99188.0,99180.0,0.31482021]
[1738649352940,0.151227,99189.0,99180.0,0.151239]
[1738649353842,0.01876877,99190.0,99171.0,0.10238506]
[1738649354017,0.151223,99191.0,99183.0,0.151235]
[1738649354246,0.201619,99197.0,99183.0,0.151235]
[1738649354439,0.201619,99197.0,99181.0,0.151238]
[1738649354440,0.151225,99190.0,99181.0,0.151238]
[1738649354953,0.00014149,99198.0,99176.0,0.201659]
[1738649355124,0.1037302,99197.0,99174.0,0.151249]
[1738649355334,0.151239,99181.0,99171.0,0.201671]
[1738649355552,0.151237,99182.0,99172.0,0.151252]
[1738649355684,0.01879454,99189.0,99171.0,0.201671]
[1738649355685,0.151239,99181.0,99171.0,0.201671]
[1738649355894,0.352868,99187.0,99173.0,0.151249]
[1738649356087,0.151238,99181.0,99173.0,0.151249]
[1738649356291,0.151238,99181.0,99170.0,0.16358121]
[1738649356292,0.201637,99188.0,99170.0,0.16358121]
[1738649356512,0.151234,99184.0,99175.0,0.151246]
[1738649356860,0.151234,99184.0,99170.0,0.16358121]
[1738649357071,0.151234,99184.0,99177.0,0.151244]
[1738649357246,0.151234,99184.0,99170.0,0.16358121]
[1738649357449,0.151234,99184.0,99176.0,0.151244]
[1738649357664,0.151234,99184.0,99170.0,0.16358121]
[1738649357665,0.201609,99202.0,99175.0,0.201661]
[1738649357811,0.151227,99189.0,99181.0,0.151238]
[1738649358780,0.151223,99191.0,99182.0,0.151236]
[1738649358965,0.151223,99191.0,99180.0,0.36523221]
[1738649359173,0.151225,99190.0,99182.0,0.151236]
[1738649359369,0.201625,99194.0,99180.0,0.16358121]
[1738649359579,0.01880833,99189.0,99183.0,0.151234]
[1738649359779,0.15123,99187.0,99179.0,0.15124]
[1738649360024,0.17003533,99189.0,99181.0,0.151237]
[1738649360229,0.02633212,99189.0,99177.0,0.16358121]
[1738649360387,0.02633212,99189.0,99187.0,0.151228]
[1738649361158,0.00752379,99189.0,99187.0,0.151228]
[1738649361359,0.00752379,99189.0,99179.0,0.15]
[1738649361563,0.00752379,99189.0,99187.0,0.151228]
[1738649361831,0.00676534,99188.0,99187.0,0.151228]
[1738649362176,0.00752379,99189.0,99187.0,0.151228]
[1738649362177,0.00752379,99189.0,99188.0,0.15]
[1738649362394,0.00752379,99189.0,99188.0,0.17434062]
[1738649362590,0.00022408,99197.0,99196.0,0.301215]
[1738649363404,0.00022408,99197.0,99196.0,0.40360006]
[1738649364187,0.00022408,99197.0,99196.0,0.301215]
[1738649365579,0.00022408,99197.0,99196.0,0.15]
[1738649367711,0.00022408,99197.0,99180.0,0.16358121]
[1738649367915,0.00022408,99197.0,99192.0,0.15122]
[1738649368092,0.00683192,99196.0,99187.0,0.16358121]